,Portfolio,Expense Area,Cost Centre,Expense Type,Account Code,Amount,Supplier Name,SupplierId,Pay Date,Transaction No.
INSERTED DETAIL,Resources & Corporate Governance ,Garage Internal,WVR01,Materials,0303,289.50,Arco Limited,100015,06/06/2013,10185630
INSERTED DETAIL,Resources & Corporate Governance ,WSU Depot,WDP00,Messing Facilities,0332,23.76,Arco Limited,100015,06/06/2013,10185630
INSERTED DETAIL,Resources & Corporate Governance ,Toilet Cleaning,WBC01,Personal Protective Clothing,0340,9.75,Arco Limited,100015,06/06/2013,10185630
INSERTED DETAIL,Resources & Corporate Governance ,Grounds Maintenance,WGM00,Personal Protective Clothing,0340,102.38,Arco Limited,100015,06/06/2013,10185630
INSERTED DETAIL,Resources & Corporate Governance ,Highways,WHG00,Personal Protective Clothing,0340,14.63,Arco Limited,100015,06/06/2013,10185630
INSERTED DETAIL,Resources & Corporate Governance ,Street Cleansing,WSC00,Personal Protective Clothing,0340,117.00,Arco Limited,100015,06/06/2013,10185630
INSERTED DETAIL,Resources & Corporate Governance ,Garage Internal,WVR01,Personal Protective Clothing,0340,19.50,Arco Limited,100015,06/06/2013,10185630
INSERTED DETAIL,Resources & Corporate Governance ,Domestic Waste Collection,WWC00,Personal Protective Clothing,0340,204.76,Arco Limited,100015,06/06/2013,10185630
INSERTED DETAIL,Resources & Corporate Governance ,Trade Waste Collection,WWC01,Personal Protective Clothing,0340,19.50,Arco Limited,100015,06/06/2013,10185630
INSERTED DETAIL,Resources & Corporate Governance ,Domestic Waste Collection,WWC00,Materials,0303,757.38,Arco Limited,100015,20/06/2013,10186475
INSERTED DETAIL,Resources & Corporate Governance ,General Financial Services,GFS00,External Contractor & Operator,0742,1100.00,Audit Commission,100020,06/06/2013,10185873
INSERTED DETAIL,Sustainable Environment ,Caldecott Park/Town Centre Area,PKS00,New Equipment,0300,3075.48,Amberol Ltd,100043,20/06/2013,10186331
INSERTED DETAIL,Housing Revenue Account ,Unplanned Maintenance and Repair,UMR00,R&M External Contractors,0100,2013.32,AWM Electrical Contractors Ltd,100051,13/06/2013,10186431
INSERTED DETAIL,Housing Revenue Account ,Unplanned Maintenance and Repair,UMR00,R&M External Contractors,0100,515.72,AWM Electrical Contractors Ltd,100051,13/06/2013,10186435
INSERTED DETAIL,Housing Revenue Account ,Unplanned Maintenance and Repair,UMR00,R&M External Contractors,0100,1447.66,AWM Electrical Contractors Ltd,100051,13/06/2013,10186436
INSERTED DETAIL,Capital Program ,Rewiring,HCE20,Capital Contract Payments,5000,1055.34,AWM Electrical Contractors Ltd,100051,13/06/2013,10186436
INSERTED DETAIL,Housing Revenue Account ,Unplanned Maintenance and Repair,UMR00,R&M External Contractors,0100,916.76,AWM Electrical Contractors Ltd,100051,13/06/2013,10186527
INSERTED DETAIL,Housing Revenue Account ,Unplanned Maintenance and Repair,UMR00,R&M External Contractors,0100,1900.35,AWM Electrical Contractors Ltd,100051,13/06/2013,10186533
INSERTED DETAIL,Housing Revenue Account ,Unplanned Maintenance and Repair,UMR00,R&M External Contractors,0100,102.83,AWM Electrical Contractors Ltd,100051,20/06/2013,10186888
INSERTED DETAIL,Capital Program ,Rewiring,HCE20,Capital Contract Payments,5000,511.20,AWM Electrical Contractors Ltd,100051,20/06/2013,10186888
INSERTED DETAIL,Housing Revenue Account ,Unplanned Maintenance and Repair,UMR00,R&M External Contractors,0100,2695.68,AWM Electrical Contractors Ltd,100051,20/06/2013,10186889
INSERTED DETAIL,Housing Revenue Account ,Unplanned Maintenance and Repair,UMR00,R&M External Contractors,0100,1144.56,AWM Electrical Contractors Ltd,100051,27/06/2013,10186935
INSERTED DETAIL,Housing Revenue Account ,Unplanned Maintenance and Repair,UMR00,R&M External Contractors,0100,1794.14,AWM Electrical Contractors Ltd,100051,27/06/2013,10186937
INSERTED DETAIL,Housing Revenue Account ,Unplanned Maintenance and Repair,UMR00,R&M External Contractors,0100,1248.30,AWM Electrical Contractors Ltd,100051,27/06/2013,10186938
INSERTED DETAIL,Economy Development & Culture,The Benn Hall,BHL00,R&M External Contractors,0100,-8945.91,DC Leisure Rugby,100140,20/06/2013,10186657
INSERTED DETAIL,Economy Development & Culture,The Benn Hall,BHL00,R&M External Contractors,0100,27230.44,DC Leisure Rugby,100140,20/06/2013,10186658
INSERTED DETAIL,Sustainable Environment ,Grass Cutting,PKS13,External Contractor & Operator,0742,595.00,Birdingbury Parish Council,100145,06/06/2013,10185692
INSERTED DETAIL,Economy Development & Culture,Car Parks General,CPK01,Fixtures & Fittings,0150,486.83,Cale Briparc Ltd,100158,13/06/2013,10185311
INSERTED DETAIL,Economy Development & Culture,Car Parks General,CPK01,Maintenance of Equipment,0301,500.06,Cale Briparc Ltd,100158,27/06/2013,10186799
INSERTED DETAIL,Resources & Corporate Governance ,Council Tax and NNDR Collection,CTX01,External Contractor & Operator,0742,42.50,Bristow & Sutor,100159,13/06/2013,10186381
INSERTED DETAIL,Housing Revenue Account ,Unplanned Maintenance and Repair,UMR00,R&M External Contractors,0100,429.10,Barron McCann Ltd,100248,20/06/2013,10186894
INSERTED DETAIL,Resources & Corporate Governance,Corporate Property R&M,CPA01,R&M External Contractors,0100,1352.00,Charles Watts Engineering Ltd,100302,20/06/2013,10185756
INSERTED DETAIL,Resources & Corporate Governance ,Domestic Waste Collection,WWC00,Vehicle Repair and Maintenance,0200,1880.00,Charles Watts Engineering Ltd,100302,27/06/2013,10187208
INSERTED DETAIL,Resources & Corporate Governance,Corporate Property R&M,CPA01,R&M External Contractors,0100,922.71,Chillaire Service & Maintenance Ltd,100305,06/06/2013,10185169
INSERTED DETAIL,Resources & Corporate Governance ,Human Resources Centralised Services,RES31,Training fees,0011,1505.00,Coventry City Council,100320,06/06/2013,10185717
INSERTED DETAIL,Resources & Corporate Governance,Handy man,WHM00,External Contractor & Operator,0742,154.84,Cwikskip (Tailby Brack Ltd),100325,13/06/2013,10186389
INSERTED DETAIL,Resources & Corporate Governance ,Domestic Waste Collection,WWC00,External Contractor & Operator,0742,703.44,Cwikskip (Tailby Brack Ltd),100325,13/06/2013,10186389
INSERTED DETAIL,Resources & Corporate Governance ,Financial Services,RES10,Subscriptions,0421,2410.00,Cipfa Business Ltd,100341,13/06/2013,10186542
INSERTED DETAIL,Sustainable Environment ,Clinical Waste,REF04,External Contractor & Operator,0742,507.31,OCS Group UK Ltd t/a Cannon,100436,13/06/2013,10186494
INSERTED DETAIL,Resources & Corporate Governance ,Domestic Waste Collection,WWC00,Vehicle Repair and Maintenance,0200,825.47,Dennis Eagle Ltd,100559,27/06/2013,10186670
INSERTED DETAIL,Resources & Corporate Governance ,Domestic Waste Collection,WWC00,Vehicle Running Costs,0201,560.00,Dvla Swansea,100560,13/06/2013,10186264
INSERTED DETAIL,Resources & Corporate Governance,Corporate Property R&M,CPA01,R&M External Contractors,0100,809.00,Dunchurch Services (Rugby) Ltd,100565,06/06/2013,10185257
INSERTED DETAIL,Capital Program ,Bathroom Modifications,HIS01,Capital Contract Payments,5000,4990.00,JADA Building & Maintenance Services Ltd,100583,13/06/2013,10185911
INSERTED DETAIL,Capital Program ,Disabled Adaptations,HCR01,Capital Contract Payments,5000,900.00,JADA Building & Maintenance Services Ltd,100583,13/06/2013,10186529
INSERTED DETAIL,Capital Program ,Bathroom Modifications,HIS01,Capital Contract Payments,5000,9980.00,JADA Building & Maintenance Services Ltd,100583,27/06/2013,10186914
INSERTED DETAIL,Capital Program ,Bathroom Modifications,HIS01,Capital Contract Payments,5000,14970.00,JADA Building & Maintenance Services Ltd,100583,27/06/2013,10186915
INSERTED DETAIL,Capital Program ,Bathroom Modifications,HIS01,Capital Contract Payments,5000,26560.00,JADA Building & Maintenance Services Ltd,100583,27/06/2013,10187180
INSERTED DETAIL,Housing Revenue Account ,Unplanned Maintenance and Repair,UMR00,R&M External Contractors,0100,848.73,Dulux Decorator Centres,100597,13/06/2013,10184417
INSERTED DETAIL,Housing Revenue Account ,Unplanned Maintenance and Repair,UMR00,R&M External Contractors,0100,1152.83,Dulux Decorator Centres,100597,13/06/2013,10186446
INSERTED DETAIL,Housing Revenue Account ,Lesley Souter House AP,AGP16,Gas,0131,1719.46,ESPO,100641,13/06/2013,10183370
INSERTED DETAIL,Housing Revenue Account ,Stretton Court AP,AGP13,Gas,0131,-1275.48,ESPO,100641,13/06/2013,10184117
INSERTED DETAIL,Housing Revenue Account ,Stretton Court AP,AGP13,Gas,0131,-7739.27,ESPO,100641,13/06/2013,10184118
INSERTED DETAIL,Resources & Corporate Governance,Corporate Property Central Utilities,CPA02,Gas,0131,1440.32,ESPO,100641,13/06/2013,10185264
INSERTED DETAIL,Housing Revenue Account ,Albert Square AP,AGP20,Gas,0131,1456.87,ESPO,100641,13/06/2013,10185266
INSERTED DETAIL,Housing Revenue Account ,Lesley Souter House AP,AGP16,Gas,0131,1194.42,ESPO,100641,13/06/2013,10185267
INSERTED DETAIL,Housing Revenue Account ,Tanser Court AP,AGP17,Gas,0131,1052.77,ESPO,100641,13/06/2013,10185268
INSERTED DETAIL,Resources & Corporate Governance ,WSU Depot,WDP00,Gas,0131,982.50,ESPO,100641,13/06/2013,10185281
INSERTED DETAIL,Resources & Corporate Governance,Corporate Property Central Utilities,CPA02,R&M External Contractors,0100,501.21,ESPO,100641,13/06/2013,10185286
INSERTED DETAIL,Resources & Corporate Governance,Corporate Property Central Utilities,CPA02,Gas,0131,1677.99,ESPO,100641,13/06/2013,10185286
INSERTED DETAIL,Housing Revenue Account ,Stretton Court AP,AGP13,Gas,0131,7739.27,ESPO,100641,20/06/2013,10186663
INSERTED DETAIL,Resources & Corporate Governance,Handy man,WHM00,Tools,0304,473.00,ESPO,100641,27/06/2013,10186767
INSERTED DETAIL,Resources & Corporate Governance,Corporate Property Central Utilities,CPA02,Gas,0131,1156.10,ESPO,100641,27/06/2013,10186813
INSERTED DETAIL,Resources & Corporate Governance,Corporate Property Central Utilities,CPA02,Gas,0131,1212.97,ESPO,100641,27/06/2013,10186837
INSERTED DETAIL,Resources & Corporate Governance ,Domestic Waste Collection,WWC00,External Contractor & Operator,0742,1139.96,Container Services UK Limited,100811,06/06/2013,10185723
INSERTED DETAIL,,Balance Sheet,BS,Car Leasing Scheme,9244,3615.22,Lex Autolease Ltd,100844,27/06/2013,10187053
INSERTED DETAIL,,Balance Sheet,BS,Car Leasing Scheme,9244,-598.52,Lex Autolease Ltd,100844,27/06/2013,10187054
INSERTED DETAIL,,Balance Sheet,BS,Car Leasing Scheme,9244,834.90,Lex Autolease Ltd,100844,27/06/2013,10187061
INSERTED DETAIL,Resources & Corporate Governance ,Town Hall,OFF00,Materials,0303,953.40,Greenham,100890,20/06/2013,10185579
INSERTED DETAIL,Capital Program ,Private Sector Renovation Loans,REN00,Capital Contract Payments,5000,1242.26,G & H Electrical,100896,13/06/2013,10186456
INSERTED DETAIL,Resources & Corporate Governance ,Corporate Property Management,CPM00,Asset Management Expenses,0448,9195.51,Godfrey-Payton Chartered Surveyors,100937,06/06/2013,10185682
INSERTED DETAIL,Resources & Corporate Governance ,Corporate Property Management,CPM00,Asset Management Expenses,0448,741.00,Godfrey-Payton Chartered Surveyors,100937,20/06/2013,10186534
INSERTED DETAIL,Resources & Corporate Governance ,Human Resources Centralised Services,RES31,Recruitment Expenses,0012,1078.25,TMP (UK) LTD,100972,06/06/2013,10185547
INSERTED DETAIL,Resources & Corporate Governance ,Human Resources Centralised Services,RES31,Recruitment Expenses,0012,965.00,TMP (UK) LTD,100972,13/06/2013,10186293
INSERTED DETAIL,Resources & Corporate Governance,Corporate Property R&M,CPA01,R&M External Contractors,0100,532.50,ThyssenKrupp Elevator UK,100985,20/06/2013,10186609
INSERTED DETAIL,Housing Revenue Account ,Unplanned Maintenance and Repair,UMR00,R&M External Contractors,0100,1050.00,Hardall International Limited,101091,06/06/2013,10185781
INSERTED DETAIL,Housing Revenue Account ,Supervision and Management General,MAN00,Subscriptions,0421,500.00,Housemark,101106,06/06/2013,10185732
INSERTED DETAIL,,User Balance Sheet Cost Centre,BSU,Section Agreements,9865,30000.00,Long Lawford Parish Council,101228,13/06/2013,10186416
INSERTED DETAIL,,User Balance Sheet Cost Centre,BSU,Section Agreements,9865,54000.00,Long Lawford Parish Council,101228,20/06/2013,10186812
INSERTED DETAIL,Capital Program ,Parish and Rural Capital Spending,CGR03,Capital Grants,5014,1296.00,Long Lawford Parish Council,101228,27/06/2013,10187171
INSERTED DETAIL,Resources & Corporate Governance,Handy man,WHM00,Materials,0303,1859.00,Melbros Ltd,101291,20/06/2013,10185907
INSERTED DETAIL,Resources & Corporate Governance,Handy man,WHM00,Materials,0303,650.80,Melbros Ltd,101291,13/06/2013,10186394
INSERTED DETAIL,Resources & Corporate Governance,Corporate Property R&M,CPA01,R&M External Contractors,0100,2762.00,Msm Environmental Services,101317,06/06/2013,10185156
INSERTED DETAIL,Economy Development & Culture,Street Furniture,HIG01,R&M External Contractors,0100,800.00,Middlemarch Environmental Ltd,101337,27/06/2013,10187109
INSERTED DETAIL,Resources & Corporate Governance ,Street Cleansing,WSC00,Vehicle Repair and Maintenance,0200,1213.89,Noden Truck Centre Ltd,101368,20/06/2013,10186601
INSERTED DETAIL,Economy Development & Culture,Street Furniture,HIG01,External Contractor & Operator,0742,1252.91,Nuneaton Signs Ltd,101371,20/06/2013,10186505
INSERTED DETAIL,Economy Development & Culture,Visitor Centre,VSC00,Events Tickets - Zero Rated,1405,1636.83,National Express Ltd,101392,06/06/2013,10185863
INSERTED DETAIL,Economy Development & Culture,Car Parks General,CPK01,Vehicle Running Costs,0201,25.00,Post Office Ltd,101429,20/06/2013,10186565
INSERTED DETAIL,Economy Development & Culture,Decrim. of Car Parking on street parking,DPE02,Vehicle Running Costs,0201,100.00,Post Office Ltd,101429,20/06/2013,10186565
INSERTED DETAIL,Resources & Corporate Governance ,Highways,WHG00,Vehicle Running Costs,0201,165.00,Post Office Ltd,101429,20/06/2013,10186565
INSERTED DETAIL,Resources & Corporate Governance ,Domestic Waste Collection,WWC00,Vehicle Running Costs,0201,1300.00,Post Office Ltd,101429,20/06/2013,10186565
INSERTED DETAIL,Sustainable Inclusive Communities,Sewage Disposal Plant,SDP00,R&M External Contractors,0100,640.00,PJT Pumping Services,101438,20/06/2013,10186780
INSERTED DETAIL,Sustainable Environment ,Caldecott Park/Town Centre Area,PKS00,R&M External Contractors,0100,1260.00,PJT Pumping Services,101438,20/06/2013,10186781
INSERTED DETAIL,Sustainable Inclusive Communities,Sewage Disposal Plant,SDP00,R&M External Contractors,0100,520.28,PJT Pumping Services,101438,27/06/2013,10186808
INSERTED DETAIL,Sustainable Environment ,Caldecott Park/Town Centre Area,PKS00,R&M External Contractors,0100,512.52,PJT Pumping Services,101438,20/06/2013,10186871
INSERTED DETAIL,Resources & Corporate Governance ,Borough Elections,ELC00,Rents,0140,192.00,Pailton Village Hall Trust,101453,06/06/2013,10185662
INSERTED DETAIL,Resources & Corporate Governance,Other Elections,ELC01,Rents,0140,192.00,Pailton Village Hall Trust,101453,06/06/2013,10185662
INSERTED DETAIL,,Police & Crime Commissioner Elections,ELC05,Rents,0140,192.00,Pailton Village Hall Trust,101453,06/06/2013,10185662
INSERTED DETAIL,Resources & Corporate Governance ,Human Resources Centralised Services,RES31,Training fees,0011,1132.32,Patricia Cresswell & Associates,101494,06/06/2013,10185864
INSERTED DETAIL,Housing Revenue Account ,Unplanned Maintenance and Repair,UMR00,R&M External Contractors,0100,13.96,Reeds Plumbing & Heating Contractors Ltd,101504,13/06/2013,10186532
INSERTED DETAIL,Capital Program ,Electric to Gas Conversions,HIM04,Capital Contract Payments,5000,5169.36,Reeds Plumbing & Heating Contractors Ltd,101504,13/06/2013,10186532
INSERTED DETAIL,Capital Program ,Disabled Facilities Grant,REN01,Capital Grants,5014,4645.00,Reeds Plumbing & Heating Contractors Ltd,101504,13/06/2013,10186536
INSERTED DETAIL,Capital Program ,Bathroom Modifications,HIS01,Capital Contract Payments,5000,2300.00,Reeds Plumbing & Heating Contractors Ltd,101504,27/06/2013,10187250
INSERTED DETAIL,Resources & Corporate Governance ,Town Hall,OFF00,Rates,0141,36502.50,Rugby Borough Council,101516,20/06/2013,10185623
INSERTED DETAIL,Capital Program ,Capital Partnership Fund,CGR01,Capital Grants,5014,4679.97,Rugby Rosa,101534,27/06/2013,10186867
INSERTED DETAIL,,Police & Crime Commissioner Elections,ELC05,Postage & Distribution,0370,755.97,Royal Mail,101554,27/06/2013,10180569
INSERTED DETAIL,Resources & Corporate Governance,Other Elections,ELC01,Postage & Distribution,0370,4058.75,Royal Mail,101554,13/06/2013,10184360
INSERTED DETAIL,Economy Development & Culture,Building Control Services,BCS00,Postage & Distribution,0370,0.39,Royal Mail,101554,20/06/2013,10185690
INSERTED DETAIL,Economy Development & Culture,Building Control Services Non-Fee Earning Account,BCS01,Postage & Distribution,0370,0.39,Royal Mail,101554,20/06/2013,10185690
INSERTED DETAIL,Economy Development & Culture,Building Regulation Fee Earning Account,BCS99,Postage & Distribution,0370,7.06,Royal Mail,101554,20/06/2013,10185690
INSERTED DETAIL,Economy Development & Culture,Car Parks General,CPK01,Postage & Distribution,0370,43.83,Royal Mail,101554,20/06/2013,10185690
INSERTED DETAIL,Resources & Corporate Governance,Central Business Support Services,CSS15,Postage & Distribution,0370,259.72,Royal Mail,101554,20/06/2013,10185690
INSERTED DETAIL,Resources & Corporate Governance ,Council Tax and NNDR Collection,CTX01,Postage & Distribution,0370,696.83,Royal Mail,101554,20/06/2013,10185690
INSERTED DETAIL,Economy Development & Culture,Decrim. of Car Parking on street parking,DPE02,Postage & Distribution,0370,175.33,Royal Mail,101554,20/06/2013,10185690
INSERTED DETAIL,Sustainable Inclusive Communities,Housing Benefit Administration,HBA00,Postage & Distribution,0370,139.83,Royal Mail,101554,20/06/2013,10185690
INSERTED DETAIL,Housing Revenue Account ,Supervision and Management General,MAN00,Postage & Distribution,0370,45.09,Royal Mail,101554,20/06/2013,10185690
INSERTED DETAIL,Economy Development & Culture,Planning General/Income,PLN00,Postage & Distribution,0370,91.02,Royal Mail,101554,20/06/2013,10185690
INSERTED DETAIL,Resources & Corporate Governance ,General Administration,WAD00,Postage & Distribution,0370,10.33,Royal Mail,101554,20/06/2013,10185690
INSERTED DETAIL,Economy Development & Culture,Art Gallery and Museum,AGM00,Postage & Distribution,0370,9.40,Royal Mail,101554,27/06/2013,10186548
INSERTED DETAIL,Economy Development & Culture,Building Control Services,BCS00,Postage & Distribution,0370,0.02,Royal Mail,101554,27/06/2013,10186548
INSERTED DETAIL,Economy Development & Culture,Building Control Services Non-Fee Earning Account,BCS01,Postage & Distribution,0370,0.02,Royal Mail,101554,27/06/2013,10186548
INSERTED DETAIL,Economy Development & Culture,Building Regulation Fee Earning Account,BCS99,Postage & Distribution,0370,0.29,Royal Mail,101554,27/06/2013,10186548
INSERTED DETAIL,Economy Development & Culture,Car Parks General,CPK01,Postage & Distribution,0370,58.12,Royal Mail,101554,27/06/2013,10186548
INSERTED DETAIL,Resources & Corporate Governance,Central Business Support Services,CSS15,Postage & Distribution,0370,388.86,Royal Mail,101554,27/06/2013,10186548
INSERTED DETAIL,Resources & Corporate Governance ,Council Tax and NNDR Collection,CTX01,Postage & Distribution,0370,338.61,Royal Mail,101554,27/06/2013,10186548
INSERTED DETAIL,Economy Development & Culture,Decrim. of Car Parking on street parking,DPE02,Postage & Distribution,0370,232.48,Royal Mail,101554,27/06/2013,10186548
INSERTED DETAIL,Resources & Corporate Governance ,Electoral Registration,ERG00,Postage & Distribution,0370,2.31,Royal Mail,101554,27/06/2013,10186548
INSERTED DETAIL,Sustainable Inclusive Communities,Housing Benefit Administration,HBA00,Postage & Distribution,0370,221.17,Royal Mail,101554,27/06/2013,10186548
INSERTED DETAIL,Housing Revenue Account ,Supervision and Management General,MAN00,Postage & Distribution,0370,189.29,Royal Mail,101554,27/06/2013,10186548
INSERTED DETAIL,Economy Development & Culture,Planning General/Income,PLN00,Postage & Distribution,0370,189.22,Royal Mail,101554,27/06/2013,10186548
INSERTED DETAIL,Economy Development & Culture,Visitor Centre,VSC00,Postage & Distribution,0370,62.31,Royal Mail,101554,27/06/2013,10186548
INSERTED DETAIL,Resources & Corporate Governance ,General Administration,WAD00,Postage & Distribution,0370,19.74,Royal Mail,101554,27/06/2013,10186548
INSERTED DETAIL,Housing Revenue Account ,Lesley Souter House AP,AGP16,Water Services,0143,1720.77,Severn Trent Water Ltd,101610,20/06/2013,10185576
INSERTED DETAIL,Resources & Corporate Governance,Corporate Property Central Utilities,CPA02,Water Services,0143,3051.19,Severn Trent Water Ltd,101610,27/06/2013,10185654
INSERTED DETAIL,Resources & Corporate Governance ,Customer and Information Strategy,CIS10,Software Maintenance,0374,14080.46,Software Box Ltd,101622,27/06/2013,10187301
INSERTED DETAIL,Capital Program ,Disabled Facilities Grant,REN01,Capital Grants,5014,3948.00,Stannah Stairlifts Ltd,101623,06/06/2013,10185688
INSERTED DETAIL,Capital Program ,Disabled Facilities Grant,REN01,Capital Grants,5014,2027.00,Stannah Stairlifts Ltd,101623,20/06/2013,10186631
INSERTED DETAIL,Capital Program ,Disabled Adaptations,HCR01,Capital Contract Payments,5000,1371.00,Stannah Stairlifts Ltd,101623,27/06/2013,10187228
INSERTED DETAIL,Resources & Corporate Governance,Handy man,WHM00,Materials,0303,483.47,Travis Perkins Trading Co Ltd,101732,13/06/2013,10185470
INSERTED DETAIL,Resources & Corporate Governance ,Domestic Waste Collection,WWC00,Vehicle Running Costs,0201,456.00,HI-Q Motorway,101736,13/06/2013,10185743
INSERTED DETAIL,Resources & Corporate Governance ,Trade Waste Collection,WWC01,Vehicle Running Costs,0201,207.00,HI-Q Motorway,101736,13/06/2013,10185743
INSERTED DETAIL,Resources & Corporate Governance,Handy man,WHM00,Vehicle Running Costs,0201,112.82,HI-Q Motorway,101736,13/06/2013,10185766
INSERTED DETAIL,Resources & Corporate Governance ,Street Cleansing,WSC00,Vehicle Running Costs,0201,71.22,HI-Q Motorway,101736,13/06/2013,10185766
INSERTED DETAIL,Resources & Corporate Governance ,Domestic Waste Collection,WWC00,Vehicle Running Costs,0201,207.00,HI-Q Motorway,101736,13/06/2013,10185766
INSERTED DETAIL,Resources & Corporate Governance ,Trade Waste Collection,WWC01,Vehicle Running Costs,0201,414.00,HI-Q Motorway,101736,13/06/2013,10185766
INSERTED DETAIL,Resources & Corporate Governance ,Street Cleansing,WSC00,Vehicle Running Costs,0201,522.47,HI-Q Motorway,101736,13/06/2013,10186208
INSERTED DETAIL,Resources & Corporate Governance ,Domestic Waste Collection,WWC00,Vehicle Running Costs,0201,403.00,HI-Q Motorway,101736,13/06/2013,10186208
INSERTED DETAIL,Resources & Corporate Governance ,Trade Waste Collection,WWC01,Vehicle Running Costs,0201,196.00,HI-Q Motorway,101736,13/06/2013,10186208
INSERTED DETAIL,Resources & Corporate Governance ,Domestic Waste Collection,WWC00,Vehicle Repair and Maintenance,0200,680.20,Terberg Matec Uk,101761,27/06/2013,10187212
INSERTED DETAIL,Resources & Corporate Governance ,Borough Elections,ELC00,Clerical Assistance,0404,739.00,REDACTED PERSONAL DATA,101825,06/06/2013,10185950
INSERTED DETAIL,Economy Development & Culture,Street Furniture,HIG01,External Contractor & Operator,0742,500.00,Warwickshire County Council,101840,27/06/2013,10187043
INSERTED DETAIL,Economy Development & Culture,Planning General/Income,PLN00,Consultancy Costs,0740,2580.00,Warwickshire County Council,101893,20/06/2013,10186865
INSERTED DETAIL,Resources & Corporate Governance ,Domestic Waste Collection,WWC00,Vehicle Repair and Maintenance,0200,3589.06,Watling JCB Limited,101922,27/06/2013,10186854
INSERTED DETAIL,Housing Revenue Account ,Unplanned Maintenance and Repair,UMR00,R&M External Contractors,0100,444.95,Adroit Services Ltd,101939,06/06/2013,10185915
INSERTED DETAIL,Capital Program ,Electric to Gas Conversions,HIM04,Capital Contract Payments,5000,921.52,Adroit Services Ltd,101939,06/06/2013,10185915
INSERTED DETAIL,Housing Revenue Account ,Unplanned Maintenance and Repair,UMR00,R&M External Contractors,0100,135.77,Adroit Services Ltd,101939,13/06/2013,10186439
INSERTED DETAIL,Capital Program ,Electric to Gas Conversions,HIM04,Capital Contract Payments,5000,841.72,Adroit Services Ltd,101939,13/06/2013,10186439
INSERTED DETAIL,Housing Revenue Account ,Unplanned Maintenance and Repair,UMR00,R&M External Contractors,0100,305.85,Adroit Services Ltd,101939,13/06/2013,10186530
INSERTED DETAIL,Capital Program ,Electric to Gas Conversions,HIM04,Capital Contract Payments,5000,2076.00,Adroit Services Ltd,101939,13/06/2013,10186530
INSERTED DETAIL,Housing Revenue Account ,Unplanned Maintenance and Repair,UMR00,R&M External Contractors,0100,1205.12,Adroit Services Ltd,101939,20/06/2013,10186651
INSERTED DETAIL,Capital Program ,Electric to Gas Conversions,HIM04,Capital Contract Payments,5000,460.76,Adroit Services Ltd,101939,20/06/2013,10186651
INSERTED DETAIL,Housing Revenue Account ,Unplanned Maintenance and Repair,UMR00,R&M External Contractors,0100,1913.81,Adroit Services Ltd,101939,20/06/2013,10186653
INSERTED DETAIL,Housing Revenue Account ,Unplanned Maintenance and Repair,UMR00,R&M External Contractors,0100,925.22,Adroit Services Ltd,101939,20/06/2013,10186655
INSERTED DETAIL,Housing Revenue Account ,Unplanned Maintenance and Repair,UMR00,R&M External Contractors,0100,496.78,Adroit Services Ltd,101939,20/06/2013,10186891
INSERTED DETAIL,Capital Program ,Electric to Gas Conversions,HIM04,Capital Contract Payments,5000,2747.38,Adroit Services Ltd,101939,20/06/2013,10186891
INSERTED DETAIL,Housing Revenue Account ,Unplanned Maintenance and Repair,UMR00,R&M External Contractors,0100,1112.19,Adroit Services Ltd,101939,27/06/2013,10186936
INSERTED DETAIL,Housing Revenue Account ,Unplanned Maintenance and Repair,UMR00,R&M External Contractors,0100,1168.83,Adroit Services Ltd,101939,27/06/2013,10187251
INSERTED DETAIL,Economy Development & Culture,Economic Development General,ECD00,Publicity & Marketing,0377,2000.00,Johnston Publishing Ltd,107468,27/06/2013,10186850
INSERTED DETAIL,Resources & Corporate Governance ,"Communications, Consultation and Information Team",BTR20,Publicity & Marketing,0377,423.90,Johnston Publishing Ltd,107468,27/06/2013,10186908
INSERTED DETAIL,Economy Development & Culture,Decrim. of Car Parking on street parking,DPE02,Other Miscellaneous Expenses,0444,597.68,TJS Self Drive Rugby,107992,06/06/2013,10185778
INSERTED DETAIL,Resources & Corporate Governance ,Central Telephone Service,TEL00,Telephone Expenses,0371,973.92,British Telecommunications PLC,108425,27/06/2013,10187209
INSERTED DETAIL,Sustainable Environment ,Caldecott Park/Town Centre Area,PKS00,External Contractor & Operator,0742,651.25,1ST CLASS HYGIENE LTD,110029,27/06/2013,10185401
INSERTED DETAIL,Economy Development & Culture,Town Centre Public Conveniences,PCS00,External Contractor & Operator,0742,1050.00,1ST CLASS HYGIENE LTD,110029,13/06/2013,10186281
INSERTED DETAIL,Economy Development & Culture,Town Centre Public Conveniences,PCS00,External Contractor & Operator,0742,638.00,1ST CLASS HYGIENE LTD,110029,13/06/2013,10186282
INSERTED DETAIL,Resources & Corporate Governance ,Grounds Maintenance,WGM00,External Contractor & Operator,0742,419.58,Boughton Loam Limited,110360,06/06/2013,10185772
INSERTED DETAIL,Resources & Corporate Governance ,Garage Internal,WVR01,Materials,0303,18924.67,Watson Petroleum,110361,06/06/2013,10185742
INSERTED DETAIL,Resources & Corporate Governance ,Garage Internal,WVR01,Materials,0303,32700.00,Watson Petroleum,110361,27/06/2013,10186906
INSERTED DETAIL,Resources & Corporate Governance,Corporate Property R&M,CPA01,R&M External Contractors,0100,1000.00,Croxford Electrical,110451,20/06/2013,10186628
INSERTED DETAIL,Resources & Corporate Governance ,Warwickshire On Line Partnership,JCC10,Payments to Other Local Authorities,0710,13309.24,Warwick District Council,111228,06/06/2013,10185574
INSERTED DETAIL,Resources & Corporate Governance ,IT Procurement,CMP00,IT Capital Expenditure,5025,1500.00,Warwick District Council,111228,20/06/2013,10186598
INSERTED DETAIL,Housing Revenue Account ,Unplanned Maintenance and Repair,UMR00,R&M External Contractors,0100,743.00,Dampco,111839,06/06/2013,10185715
INSERTED DETAIL,Resources & Corporate Governance ,Maintenance of Customer Services Systems,CIS21,Software Maintenance,0374,4462.94,Civica UK Ltd,112724,13/06/2013,10186504
INSERTED DETAIL,Resources & Corporate Governance ,Maintenance of Customer Services Systems,CIS21,Software Maintenance,0374,4049.05,Civica UK Ltd,112724,20/06/2013,10186577
INSERTED DETAIL,Resources & Corporate Governance ,Maintenance of Customer Services Systems,CIS21,Software Maintenance,0374,10260.90,Civica UK Ltd,112724,20/06/2013,10186580
INSERTED DETAIL,Resources & Corporate Governance ,Maintenance of Customer Services Systems,CIS21,Software Maintenance,0374,8057.61,Civica UK Ltd,112724,20/06/2013,10186604
INSERTED DETAIL,Resources & Corporate Governance ,IT Procurement,CMP00,IT Capital Expenditure,5025,500.00,Civica UK Ltd,112724,20/06/2013,10186843
INSERTED DETAIL,Resources & Corporate Governance ,Maintenance of Customer Services Systems,CIS21,Software Maintenance,0374,500.00,Civica UK Ltd,112724,27/06/2013,10187044
INSERTED DETAIL,Resources & Corporate Governance ,Grounds Maintenance,WGM00,Vehicle Repair and Maintenance,0200,471.65,Geo Browns Implements Ltd,112870,13/06/2013,10185961
INSERTED DETAIL,Resources & Corporate Governance ,TREE WORKS,WGM01,External Contractor & Operator,0742,645.00,Acorn Environmental Management Group Ltd,113313,13/06/2013,10186265
INSERTED DETAIL,Sustainable Inclusive Communities,Housing Benefit Administration,HBA00,Agency Staff,0003,897.75,Badenoch & Clark,113435,13/06/2013,10186414
INSERTED DETAIL,Sustainable Inclusive Communities,Housing Benefit Administration,HBA00,Agency Staff,0003,992.25,Badenoch & Clark,113435,13/06/2013,10186437
INSERTED DETAIL,Sustainable Inclusive Communities,Housing Benefit Administration,HBA00,Agency Staff,0003,870.75,Badenoch & Clark,113435,20/06/2013,10186883
INSERTED DETAIL,Sustainable Inclusive Communities,Housing Benefit Administration,HBA00,Agency Staff,0003,972.00,Badenoch & Clark,113435,27/06/2013,10187151
INSERTED DETAIL,Sustainable Inclusive Communities,CL Grants,CGS00,Grants To Voluntary Organisations,0720,11500.00,Relate Rugby & N E Warwickshire Ltd,113618,13/06/2013,10186518
INSERTED DETAIL,Housing Revenue Account ,Unplanned Maintenance and Repair,UMR00,R&M External Contractors,0100,4995.00,Chillaire Ltd,117596,06/06/2013,10185256
INSERTED DETAIL,Resources & Corporate Governance,Corporate Property R&M,CPA01,R&M External Contractors,0100,590.00,Chillaire Ltd,117596,20/06/2013,10186537
INSERTED DETAIL,Resources & Corporate Governance,Corporate Property R&M,CPA01,R&M External Contractors,0100,1000.00,Chillaire Ltd,117596,20/06/2013,10186538
INSERTED DETAIL,Sustainable Environment ,Cemeteries General,CEM00,R&M External Contractors,0100,820.00,Lushglen,117749,06/06/2013,10185776
INSERTED DETAIL,Sustainable Environment ,Caldecott Park/Town Centre Area,PKS00,External Contractor & Operator,0742,73.50,Lushglen,117749,06/06/2013,10185776
INSERTED DETAIL,Sustainable Environment ,Caldecott Park/Town Centre Area,PKS00,External Contractor & Operator,0742,510.00,Lushglen,117749,06/06/2013,10185777
INSERTED DETAIL,Resources & Corporate Governance,Corporate Property Central Utilities,CPA02,Electricity,0130,8530.18,Southern Electric,118976,06/06/2013,10184711
INSERTED DETAIL,Resources & Corporate Governance,Corporate Property Central Utilities,CPA02,Electricity,0130,8141.69,Southern Electric,118976,06/06/2013,10185949
INSERTED DETAIL,Resources & Corporate Governance ,WSU Depot,WDP00,Electricity,0130,-5896.73,Southern Electric,118976,06/06/2013,10185949
INSERTED DETAIL,Resources & Corporate Governance,Corporate Property Central Utilities,CPA02,Electricity,0130,8602.25,Southern Electric,118976,27/06/2013,10186664
INSERTED DETAIL,Resources & Corporate Governance,Corporate Property Central Utilities,CPA02,Electricity,0130,104.27,Southern Electric,118976,27/06/2013,10186913
INSERTED DETAIL,Resources & Corporate Governance ,WSU Depot,WDP00,Electricity,0130,723.19,Southern Electric,118976,27/06/2013,10186913
INSERTED DETAIL,Resources & Corporate Governance ,Domestic Waste Collection,WWC00,Agency Staff,0003,2711.11,G-Staff Ltd,120173,20/06/2013,10184690
INSERTED DETAIL,Resources & Corporate Governance ,Toilet Cleaning,WBC01,Agency Staff,0003,740.60,G-Staff Ltd,120173,06/06/2013,10185764
INSERTED DETAIL,Resources & Corporate Governance,Handy man,WHM00,Agency Staff,0003,123.00,G-Staff Ltd,120173,06/06/2013,10185764
INSERTED DETAIL,Resources & Corporate Governance ,Street Cleansing,WSC00,Agency Staff,0003,123.00,G-Staff Ltd,120173,06/06/2013,10185764
INSERTED DETAIL,Resources & Corporate Governance ,Domestic Waste Collection,WWC00,Agency Staff,0003,2543.61,G-Staff Ltd,120173,06/06/2013,10185764
INSERTED DETAIL,Resources & Corporate Governance ,Street Cleansing,WSC00,Agency Staff,0003,469.17,G-Staff Ltd,120173,13/06/2013,10186387
INSERTED DETAIL,Resources & Corporate Governance ,Domestic Waste Collection,WWC00,Agency Staff,0003,3115.06,G-Staff Ltd,120173,13/06/2013,10186387
INSERTED DETAIL,Resources & Corporate Governance ,Domestic Waste Collection,WWC00,Agency Staff,0003,1364.70,G-Staff Ltd,120173,20/06/2013,10186621
INSERTED DETAIL,Resources & Corporate Governance ,Human Resources Centralised Services,RES31,Training fees,0011,1218.12,Nelson Training,120218,27/06/2013,10187083
INSERTED DETAIL,Capital Program ,Fire Risk Assessment,HCE18,Capital Contract Payments,5000,4060.00,Michael Dyson Associates,121502,06/06/2013,10185869
INSERTED DETAIL,Capital Program ,Housing Management System,HCE08,Capital Contract Payments,5000,950.00,Northgate Information Solutions UK Ltd,121606,06/06/2013,10182794
INSERTED DETAIL,Resources & Corporate Governance ,Maintenance of Customer Services Systems,CIS21,Software Maintenance,0374,25525.23,Northgate Information Solutions UK Ltd,121606,06/06/2013,10185782
INSERTED DETAIL,Resources & Corporate Governance ,Maintenance of Customer Services Systems,CIS21,Software Maintenance,0374,-23500.00,Northgate Information Solutions UK Ltd,121606,06/06/2013,10185884
INSERTED DETAIL,Capital Program ,Housing Management System,HCE08,Capital Contract Payments,5000,950.00,Northgate Information Solutions UK Ltd,121606,27/06/2013,10185939
INSERTED DETAIL,Housing Revenue Account ,Supervision and Management General,MAN00,Publicity & Marketing,0377,1750.00,Janus Kreative,121748,06/06/2013,10185947
INSERTED DETAIL,Housing Revenue Account ,Property Maintenance,MAN23,Consultancy Costs,0740,1286.40,HQN Limited,122890,20/06/2013,10186868
INSERTED DETAIL,Resources & Corporate Governance ,Grounds Maintenance,WGM00,External Contractor & Operator,0742,2225.00,Tayside Amenity Sprayers Limited,122930,06/06/2013,10185770
INSERTED DETAIL,Resources & Corporate Governance ,Central Telephone Service,TEL00,Telephone Expenses,0371,1041.25,Cable & Wireless/T/A Vodafone,123224,13/06/2013,10186374
INSERTED DETAIL,Resources & Corporate Governance ,Grounds Maintenance,WGM00,Materials,0303,937.50,Rigby Taylor Ltd,123342,13/06/2013,10185633
INSERTED DETAIL,Resources & Corporate Governance,Corporate Property Administration,CPA00,Subscriptions,0421,2702.50,IHS (Global) Ltd,124552,06/06/2013,10184053
INSERTED DETAIL,Sustainable Inclusive Communities,Housing Strategy & Enabling,HSE00,Subscriptions,0421,2702.50,IHS (Global) Ltd,124552,06/06/2013,10184053
INSERTED DETAIL,Sustainable Environment ,Caldecott Park/Town Centre Area,PKS00,Subscriptions,0421,2702.50,IHS (Global) Ltd,124552,06/06/2013,10184053
INSERTED DETAIL,Resources & Corporate Governance ,General Administration,WAD00,Subscriptions,0421,2702.50,IHS (Global) Ltd,124552,06/06/2013,10184053
INSERTED DETAIL,Resources & Corporate Governance ,Garage Internal,WVR01,Materials,0303,428.39,Shell U.K. Oil Products Limited,125672,06/06/2013,10185811
INSERTED DETAIL,Housing Revenue Account ,Unplanned Maintenance and Repair,UMR00,R&M External Contractors,0100,100.00,George and Company (Surveyors) Ltd,126668,06/06/2013,10185913
INSERTED DETAIL,Housing Revenue Account ,Property Maintenance,MAN23,External Contractor & Operator,0742,900.00,George and Company (Surveyors) Ltd,126668,06/06/2013,10185913
INSERTED DETAIL,Capital Program ,Moving in Grants,MIG00,Development Activities,0450,22000.00,Rugby First Limited - Town Centre,130214,06/06/2013,10186047
INSERTED DETAIL,Capital Program ,Town Centre Initiatives,TIN00,Development Activities,0450,10000.00,Rugby First Limited - Town Centre,130214,06/06/2013,10186047
INSERTED DETAIL,,User Balance Sheet Cost Centre,BSU,Section Agreements,9865,2831.00,I D Welding & Fabrications,131407,20/06/2013,10185971
INSERTED DETAIL,Sustainable Environment ,Caldecott Park/Town Centre Area,PKS00,Maintenance of Equipment,0301,420.00,I D Welding & Fabrications,131407,13/06/2013,10185973
INSERTED DETAIL,Capital Program ,Disabled Facilities Grant,REN01,Capital Grants,5014,4121.00,D K Builders,131946,06/06/2013,10185979
INSERTED DETAIL,Sustainable Inclusive Communities,Housing Options Team,HOT00,Rents,0140,700.00,N Mallidi,132033,13/06/2013,10183728
INSERTED DETAIL,Sustainable Inclusive Communities,Housing Options Team,HOT00,Rents,0140,978.00,N Mallidi,132033,13/06/2013,10184050
INSERTED DETAIL,Sustainable Inclusive Communities,Housing Options Team,HOT00,Rents,0140,546.00,N Mallidi,132033,13/06/2013,10184198
INSERTED DETAIL,Economy Development & Culture,Town Centre CCTV and Management,TVM00,Other Agencies,0734,20115.98,Rugby First Ltd - BID,133176,20/06/2013,10186600
INSERTED DETAIL,Economy Development & Culture,Car Parks General,CPK01,Other Agencies,0734,209.30,Chipside Limited,133289,13/06/2013,10186042
INSERTED DETAIL,Economy Development & Culture,Decrim. of Car Parking on street parking,DPE02,Other Agencies,0734,837.20,Chipside Limited,133289,13/06/2013,10186042
INSERTED DETAIL,Resources & Corporate Governance,Corporate Property R&M,CPA01,R&M External Contractors,0100,480.00,Sunfish Services Ltd,133886,06/06/2013,10185163
INSERTED DETAIL,Resources & Corporate Governance,Corporate Property R&M,CPA01,R&M External Contractors,0100,532.25,Sunfish Services Ltd,133886,06/06/2013,10185179
INSERTED DETAIL,Housing Revenue Account ,Unplanned Maintenance and Repair,UMR00,R&M External Contractors,0100,1090.32,Sunfish Services Ltd,133886,06/06/2013,10185914
INSERTED DETAIL,Resources & Corporate Governance,Corporate Property R&M,CPA01,R&M External Contractors,0100,4840.00,Sunfish Services Ltd,133886,20/06/2013,10185937
INSERTED DETAIL,Resources & Corporate Governance ,Human Resources Centralised Services,RES31,Eye Tests & Glasses Contributions,0015,850.00,Specsavers Optical Superstores,134897,06/06/2013,10185941
INSERTED DETAIL,Housing Revenue Account ,Dickinson Court AP,AGP03,Electricity,0130,582.24,Southern Electric,135653,20/06/2013,10186576
INSERTED DETAIL,Housing Revenue Account ,Mercer Court AP,AGP09,Electricity,0130,339.32,Southern Electric,135653,20/06/2013,10186576
INSERTED DETAIL,Housing Revenue Account ,Robotham Close AP,AGP11,Electricity,0130,530.50,Southern Electric,135653,20/06/2013,10186576
INSERTED DETAIL,Housing Revenue Account ,Stretton Court AP,AGP13,Electricity,0130,298.49,Southern Electric,135653,20/06/2013,10186576
INSERTED DETAIL,Housing Revenue Account ,Hirst Close AP,AGP33,Electricity,0130,131.40,Southern Electric,135653,20/06/2013,10186576
INSERTED DETAIL,Housing Revenue Account ,Brookside Pailton AP,AGP40,Electricity,0130,220.76,Southern Electric,135653,20/06/2013,10186576
INSERTED DETAIL,Housing Revenue Account ,Featherbed Lane I AP,AGP45,Electricity,0130,169.83,Southern Electric,135653,20/06/2013,10186576
INSERTED DETAIL,Housing Revenue Account ,Fox Close AP,AGP47,Electricity,0130,159.63,Southern Electric,135653,20/06/2013,10186576
INSERTED DETAIL,Housing Revenue Account ,Great Balance Brinklow AP,AGP48,Electricity,0130,81.32,Southern Electric,135653,20/06/2013,10186576
INSERTED DETAIL,Housing Revenue Account ,Lever Road I AP,AGP57,Electricity,0130,68.21,Southern Electric,135653,20/06/2013,10186576
INSERTED DETAIL,Housing Revenue Account ,Meadow Way/Primrose Court AP,AGP58,Electricity,0130,45.37,Southern Electric,135653,20/06/2013,10186576
INSERTED DETAIL,Housing Revenue Account ,Norman Road AP,AGP60,Electricity,0130,27.58,Southern Electric,135653,20/06/2013,10186576
INSERTED DETAIL,Housing Revenue Account ,Patterdale AP,AGP61,Electricity,0130,113.37,Southern Electric,135653,20/06/2013,10186576
INSERTED DETAIL,Housing Revenue Account ,Parkfield Road/Lea Crescent AP,AGP71,Electricity,0130,246.49,Southern Electric,135653,20/06/2013,10186576
INSERTED DETAIL,Housing Revenue Account ,Supervision and Management General,MAN00,Electricity,0130,126.84,Southern Electric,135653,20/06/2013,10186576
INSERTED DETAIL,,Balance Sheet,BS,Car Leasing Scheme,9244,-600.00,GE Commercial Finance (Custom Fleet),137111,13/06/2013,10186523
INSERTED DETAIL,,Balance Sheet,BS,Car Leasing Scheme,9244,2173.38,GE Commercial Finance (Custom Fleet),137111,13/06/2013,10186525
INSERTED DETAIL,Resources & Corporate Governance ,Domestic Waste Collection,WWC00,Vehicle Repair and Maintenance,0200,741.84,Heil Farid European Company Ltd,137390,13/06/2013,10186363
INSERTED DETAIL,Capital Program ,Open Spaces Refurbishment,LEI08,Capital Contract Payments,5000,7935.00,Listers Geotechnical Consultants Ltd,138527,06/06/2013,10185773
INSERTED DETAIL,Housing Revenue Account ,Unplanned Maintenance and Repair,UMR00,R&M External Contractors,0100,942.01,Regent Office Care Ltd T/A Regent Cleaning,138934,13/06/2013,10186438
INSERTED DETAIL,Housing Revenue Account ,Asbestos Surveys,UMR05,R&M External Contractors,0100,1040.00,Rider Levett Bucknall UK Ltd,139918,20/06/2013,10186892
INSERTED DETAIL,Resources & Corporate Governance ,Domestic Waste Collection,WWC00,Vehicle Repair and Maintenance,0200,992.10,Midlands Truck & Van Ltd,140322,13/06/2013,10185752
INSERTED DETAIL,Resources & Corporate Governance ,Maintenance of Customer Services Systems,CIS21,Software Maintenance,0374,4276.44,Midland Software Ltd,140463,06/06/2013,10185866
INSERTED DETAIL,Resources & Corporate Governance ,WSU Depot,WDP00,Messing Facilities,0332,1590.00,Environment Agency,141170,20/06/2013,10186853
INSERTED DETAIL,Resources & Corporate Governance ,Customer and Information Strategy,CIS10,Telephone Expenses,0371,750.62,Zen Internet Ltd,141612,06/06/2013,10185131
INSERTED DETAIL,Resources & Corporate Governance ,Council Tax and NNDR Collection,CTX01,Telephone Expenses,0371,21.27,Zen Internet Ltd,141612,06/06/2013,10185131
INSERTED DETAIL,Resources & Corporate Governance ,Customer and Information Strategy,CIS10,Telephone Expenses,0371,750.62,Zen Internet Ltd,141612,27/06/2013,10186878
INSERTED DETAIL,Resources & Corporate Governance ,Council Tax and NNDR Collection,CTX01,Telephone Expenses,0371,21.28,Zen Internet Ltd,141612,27/06/2013,10186878
INSERTED DETAIL,Sustainable Environment ,Caldecott Park/Town Centre Area,PKS00,Maintenance of Equipment,0301,1480.00,Matta Products (UK),145081,13/06/2013,10185322
INSERTED DETAIL,Housing Revenue Account ,Property Maintenance,MAN23,Agency Staff,0003,1305.00,James Andrews Recruitment Solutions Ltd,145100,06/06/2013,10185729
INSERTED DETAIL,Housing Revenue Account ,Property Maintenance,MAN23,Agency Staff,0003,982.50,James Andrews Recruitment Solutions Ltd,145100,06/06/2013,10185730
INSERTED DETAIL,Sustainable Inclusive Communities,Housing Options Team,HOT00,Agency Staff,0003,598.97,James Andrews Recruitment Solutions Ltd,145100,13/06/2013,10185880
INSERTED DETAIL,Housing Revenue Account ,Property Maintenance,MAN23,Agency Staff,0003,942.50,James Andrews Recruitment Solutions Ltd,145100,13/06/2013,10186178
INSERTED DETAIL,Sustainable Inclusive Communities,Housing Options Team,HOT00,Agency Staff,0003,463.58,James Andrews Recruitment Solutions Ltd,145100,13/06/2013,10186179
INSERTED DETAIL,Housing Revenue Account ,Property Maintenance,MAN23,Agency Staff,0003,945.00,James Andrews Recruitment Solutions Ltd,145100,13/06/2013,10186180
INSERTED DETAIL,Housing Revenue Account ,Property Maintenance,MAN23,Agency Staff,0003,1232.50,James Andrews Recruitment Solutions Ltd,145100,20/06/2013,10186555
INSERTED DETAIL,Housing Revenue Account ,Property Maintenance,MAN23,Agency Staff,0003,1038.45,James Andrews Recruitment Solutions Ltd,145100,20/06/2013,10186556
INSERTED DETAIL,Housing Revenue Account ,Property Maintenance,MAN23,Agency Staff,0003,765.00,James Andrews Recruitment Solutions Ltd,145100,27/06/2013,10187066
INSERTED DETAIL,Housing Revenue Account ,Property Maintenance,MAN23,Agency Staff,0003,1232.50,James Andrews Recruitment Solutions Ltd,145100,27/06/2013,10187067
INSERTED DETAIL,Sustainable Inclusive Communities,Housing Options Team,HOT00,Agency Staff,0003,660.50,James Andrews Recruitment Solutions Ltd,145100,27/06/2013,10187206
INSERTED DETAIL,Resources & Corporate Governance,Handy man,WHM00,Agency Staff,0003,576.76,Blue Arrow Limited,145492,06/06/2013,10185860
INSERTED DETAIL,Resources & Corporate Governance ,Street Cleansing,WSC00,Agency Staff,0003,606.00,Blue Arrow Limited,145492,06/06/2013,10185860
INSERTED DETAIL,Resources & Corporate Governance ,Domestic Waste Collection,WWC00,Agency Staff,0003,454.79,Blue Arrow Limited,145492,06/06/2013,10185860
INSERTED DETAIL,Resources & Corporate Governance ,Trade Waste Collection,WWC01,Agency Staff,0003,504.45,Blue Arrow Limited,145492,06/06/2013,10185860
INSERTED DETAIL,Resources & Corporate Governance,Handy man,WHM00,Agency Staff,0003,316.50,Blue Arrow Limited,145492,13/06/2013,10186332
INSERTED DETAIL,Resources & Corporate Governance ,Street Cleansing,WSC00,Agency Staff,0003,656.28,Blue Arrow Limited,145492,13/06/2013,10186332
INSERTED DETAIL,Resources & Corporate Governance ,Domestic Waste Collection,WWC00,Agency Staff,0003,441.59,Blue Arrow Limited,145492,13/06/2013,10186332
INSERTED DETAIL,Resources & Corporate Governance ,Trade Waste Collection,WWC01,Agency Staff,0003,634.80,Blue Arrow Limited,145492,13/06/2013,10186332
INSERTED DETAIL,Resources & Corporate Governance ,General Financial Services,GFS00,External Contractor & Operator,0742,18097.00,Grant Thornton UK LLP,145501,27/06/2013,10187069
INSERTED DETAIL,Resources & Corporate Governance,Corporate Property R&M,CPA01,R&M External Contractors,0100,3187.00,Midland Communications Company Ltd,145546,20/06/2013,10186470
INSERTED DETAIL,Housing Revenue Account ,Supervision and Management General,MAN00,Publicity & Marketing,0377,1697.44,Impress Print,145574,27/06/2013,10187231
INSERTED DETAIL,Resources & Corporate Governance,Handy man,WHM00,Tools,0304,445.80,Midland Ladder Co Ltd,145680,06/06/2013,10182660
INSERTED DETAIL,Economy Development & Culture,Economic Development General,ECD00,Development Activities,0450,1015.00,Simon Cox,145799,27/06/2013,10187024
INSERTED DETAIL,Capital Program ,Private Sector Renovation Loans,REN00,Capital Contract Payments,5000,2996.40,Inhouse Renovations,145963,06/06/2013,10185918
INSERTED DETAIL,Resources & Corporate Governance ,General Administration,WAD00,Training fees,0011,795.00,SB Asbestos Management Ltd,146090,20/06/2013,10186421
INSERTED DETAIL,Resources & Corporate Governance ,WSU Depot,WDP00,Telephone Expenses,0371,4482.59,Virgin Media Business Ltd,146605,13/06/2013,10186411
INSERTED DETAIL,Resources & Corporate Governance,Handy man,WHM00,External Contractor & Operator,0742,449.00,Mick Brown Plastering,146699,13/06/2013,10185506
INSERTED DETAIL,Resources & Corporate Governance,Handy man,WHM00,External Contractor & Operator,0742,625.00,Mick Brown Plastering,146699,13/06/2013,10185963
INSERTED DETAIL,Resources & Corporate Governance,Handy man,WHM00,External Contractor & Operator,0742,475.00,Mick Brown Plastering,146699,27/06/2013,10187088
INSERTED DETAIL,Economy Development & Culture,AGM Exhibitions/Outreach,AGM02,Other Miscellaneous Expenses,0444,701.00,The Printing House Ltd,146767,20/06/2013,10186298
INSERTED DETAIL,Resources & Corporate Governance ,Domestic Waste Collection,WWC00,Personal Protective Clothing,0340,475.20,ASKAS,146773,27/06/2013,10185842
INSERTED DETAIL,Resources & Corporate Governance ,Retired Employees,RET00,Additional Pension Payments,0014,3402.24,WCC Pension Fund,146914,06/06/2013,10185791
INSERTED DETAIL,Resources & Corporate Governance ,Retired Employees,RET00,Additional Pension Payments,0014,10784.65,WCC Pension Fund,146914,13/06/2013,10186418
INSERTED DETAIL,Economy Development & Culture,Art Gallery and Museum,AGM00,Postage & Distribution,0370,0.32,TNT Post Midlands Ltd,146983,20/06/2013,10185532
INSERTED DETAIL,Economy Development & Culture,Building Control Services,BCS00,Postage & Distribution,0370,1.01,TNT Post Midlands Ltd,146983,20/06/2013,10185532
INSERTED DETAIL,Economy Development & Culture,Building Control Services Non-Fee Earning Account,BCS01,Postage & Distribution,0370,1.01,TNT Post Midlands Ltd,146983,20/06/2013,10185532
INSERTED DETAIL,Economy Development & Culture,Building Regulation Fee Earning Account,BCS99,Postage & Distribution,0370,18.25,TNT Post Midlands Ltd,146983,20/06/2013,10185532
INSERTED DETAIL,Resources & Corporate Governance,Central Business Support Services,CSS15,Postage & Distribution,0370,184.41,TNT Post Midlands Ltd,146983,20/06/2013,10185532
INSERTED DETAIL,Resources & Corporate Governance ,Council Tax and NNDR Collection,CTX01,Postage & Distribution,0370,223.71,TNT Post Midlands Ltd,146983,20/06/2013,10185532
INSERTED DETAIL,Resources & Corporate Governance ,Electoral Registration,ERG00,Postage & Distribution,0370,110.89,TNT Post Midlands Ltd,146983,20/06/2013,10185532
INSERTED DETAIL,Sustainable Inclusive Communities,Housing Benefit Administration,HBA00,Postage & Distribution,0370,158.60,TNT Post Midlands Ltd,146983,20/06/2013,10185532
INSERTED DETAIL,Housing Revenue Account ,Supervision and Management General,MAN00,Postage & Distribution,0370,73.17,TNT Post Midlands Ltd,146983,20/06/2013,10185532
INSERTED DETAIL,Economy Development & Culture,Visitor Centre,VSC00,Postage & Distribution,0370,0.64,TNT Post Midlands Ltd,146983,20/06/2013,10185532
INSERTED DETAIL,Resources & Corporate Governance ,General Administration,WAD00,Postage & Distribution,0370,26.76,TNT Post Midlands Ltd,146983,20/06/2013,10185532
INSERTED DETAIL,Economy Development & Culture,Art Gallery and Museum,AGM00,Postage & Distribution,0370,2.41,TNT Post Midlands Ltd,146983,20/06/2013,10185790
INSERTED DETAIL,Economy Development & Culture,Building Control Services,BCS00,Postage & Distribution,0370,1.16,TNT Post Midlands Ltd,146983,20/06/2013,10185790
INSERTED DETAIL,Economy Development & Culture,Building Control Services Non-Fee Earning Account,BCS01,Postage & Distribution,0370,1.16,TNT Post Midlands Ltd,146983,20/06/2013,10185790
INSERTED DETAIL,Economy Development & Culture,Building Regulation Fee Earning Account,BCS99,Postage & Distribution,0370,20.93,TNT Post Midlands Ltd,146983,20/06/2013,10185790
INSERTED DETAIL,Resources & Corporate Governance,Central Business Support Services,CSS15,Postage & Distribution,0370,50.64,TNT Post Midlands Ltd,146983,20/06/2013,10185790
INSERTED DETAIL,Resources & Corporate Governance ,Council Tax and NNDR Collection,CTX01,Postage & Distribution,0370,207.82,TNT Post Midlands Ltd,146983,20/06/2013,10185790
INSERTED DETAIL,Resources & Corporate Governance ,Electoral Registration,ERG00,Postage & Distribution,0370,53.11,TNT Post Midlands Ltd,146983,20/06/2013,10185790
INSERTED DETAIL,Sustainable Inclusive Communities,Housing Benefit Administration,HBA00,Postage & Distribution,0370,180.27,TNT Post Midlands Ltd,146983,20/06/2013,10185790
INSERTED DETAIL,Housing Revenue Account ,Supervision and Management General,MAN00,Postage & Distribution,0370,94.49,TNT Post Midlands Ltd,146983,20/06/2013,10185790
INSERTED DETAIL,Economy Development & Culture,Visitor Centre,VSC00,Postage & Distribution,0370,1.24,TNT Post Midlands Ltd,146983,20/06/2013,10185790
INSERTED DETAIL,Resources & Corporate Governance ,General Administration,WAD00,Postage & Distribution,0370,5.87,TNT Post Midlands Ltd,146983,20/06/2013,10185790
INSERTED DETAIL,Economy Development & Culture,Building Control Services,BCS00,Postage & Distribution,0370,0.35,TNT Post Midlands Ltd,146983,20/06/2013,10186403
INSERTED DETAIL,Economy Development & Culture,Building Control Services Non-Fee Earning Account,BCS01,Postage & Distribution,0370,0.35,TNT Post Midlands Ltd,146983,20/06/2013,10186403
INSERTED DETAIL,Economy Development & Culture,Building Regulation Fee Earning Account,BCS99,Postage & Distribution,0370,6.21,TNT Post Midlands Ltd,146983,20/06/2013,10186403
INSERTED DETAIL,Resources & Corporate Governance,Central Business Support Services,CSS15,Postage & Distribution,0370,46.46,TNT Post Midlands Ltd,146983,20/06/2013,10186403
INSERTED DETAIL,Resources & Corporate Governance ,Council Tax and NNDR Collection,CTX01,Postage & Distribution,0370,183.83,TNT Post Midlands Ltd,146983,20/06/2013,10186403
INSERTED DETAIL,Resources & Corporate Governance ,Electoral Registration,ERG00,Postage & Distribution,0370,3.37,TNT Post Midlands Ltd,146983,20/06/2013,10186403
INSERTED DETAIL,Sustainable Inclusive Communities,Housing Benefit Administration,HBA00,Postage & Distribution,0370,143.08,TNT Post Midlands Ltd,146983,20/06/2013,10186403
INSERTED DETAIL,Housing Revenue Account ,Supervision and Management General,MAN00,Postage & Distribution,0370,44.73,TNT Post Midlands Ltd,146983,20/06/2013,10186403
INSERTED DETAIL,Resources & Corporate Governance ,General Administration,WAD00,Postage & Distribution,0370,3.06,TNT Post Midlands Ltd,146983,20/06/2013,10186403
INSERTED DETAIL,Economy Development & Culture,Building Control Services,BCS00,Postage & Distribution,0370,1.08,TNT Post Midlands Ltd,146983,27/06/2013,10186811
INSERTED DETAIL,Economy Development & Culture,Building Control Services Non-Fee Earning Account,BCS01,Postage & Distribution,0370,1.08,TNT Post Midlands Ltd,146983,27/06/2013,10186811
INSERTED DETAIL,Economy Development & Culture,Building Regulation Fee Earning Account,BCS99,Postage & Distribution,0370,19.35,TNT Post Midlands Ltd,146983,27/06/2013,10186811
INSERTED DETAIL,Resources & Corporate Governance,Central Business Support Services,CSS15,Postage & Distribution,0370,71.96,TNT Post Midlands Ltd,146983,27/06/2013,10186811
INSERTED DETAIL,Resources & Corporate Governance ,Council Tax and NNDR Collection,CTX01,Postage & Distribution,0370,292.19,TNT Post Midlands Ltd,146983,27/06/2013,10186811
INSERTED DETAIL,Resources & Corporate Governance ,Electoral Registration,ERG00,Postage & Distribution,0370,55.75,TNT Post Midlands Ltd,146983,27/06/2013,10186811
INSERTED DETAIL,Sustainable Inclusive Communities,Housing Benefit Administration,HBA00,Postage & Distribution,0370,134.50,TNT Post Midlands Ltd,146983,27/06/2013,10186811
INSERTED DETAIL,Housing Revenue Account ,Supervision and Management General,MAN00,Postage & Distribution,0370,171.05,TNT Post Midlands Ltd,146983,27/06/2013,10186811
INSERTED DETAIL,Resources & Corporate Governance ,General Administration,WAD00,Postage & Distribution,0370,33.86,TNT Post Midlands Ltd,146983,27/06/2013,10186811
INSERTED DETAIL,Economy Development & Culture,Art Gallery and Museum,AGM00,Postage & Distribution,0370,30.66,TNT Post Midlands Ltd,146983,27/06/2013,10186927
INSERTED DETAIL,Economy Development & Culture,Building Control Services,BCS00,Postage & Distribution,0370,0.67,TNT Post Midlands Ltd,146983,27/06/2013,10186927
INSERTED DETAIL,Economy Development & Culture,Building Control Services Non-Fee Earning Account,BCS01,Postage & Distribution,0370,0.67,TNT Post Midlands Ltd,146983,27/06/2013,10186927
INSERTED DETAIL,Economy Development & Culture,Building Regulation Fee Earning Account,BCS99,Postage & Distribution,0370,11.98,TNT Post Midlands Ltd,146983,27/06/2013,10186927
INSERTED DETAIL,Resources & Corporate Governance,Central Business Support Services,CSS15,Postage & Distribution,0370,49.36,TNT Post Midlands Ltd,146983,27/06/2013,10186927
INSERTED DETAIL,Resources & Corporate Governance ,Council Tax and NNDR Collection,CTX01,Postage & Distribution,0370,281.29,TNT Post Midlands Ltd,146983,27/06/2013,10186927
INSERTED DETAIL,Resources & Corporate Governance ,Electoral Registration,ERG00,Postage & Distribution,0370,52.76,TNT Post Midlands Ltd,146983,27/06/2013,10186927
INSERTED DETAIL,Sustainable Inclusive Communities,Housing Benefit Administration,HBA00,Postage & Distribution,0370,219.64,TNT Post Midlands Ltd,146983,27/06/2013,10186927
INSERTED DETAIL,Housing Revenue Account ,Supervision and Management General,MAN00,Postage & Distribution,0370,176.36,TNT Post Midlands Ltd,146983,27/06/2013,10186927
INSERTED DETAIL,Resources & Corporate Governance ,General Administration,WAD00,Postage & Distribution,0370,10.97,TNT Post Midlands Ltd,146983,27/06/2013,10186927
INSERTED DETAIL,Economy Development & Culture,Art Gallery and Museum,AGM00,Postage & Distribution,0370,0.56,TNT Post Midlands Ltd,146983,27/06/2013,10186928
INSERTED DETAIL,Economy Development & Culture,Building Control Services,BCS00,Postage & Distribution,0370,0.60,TNT Post Midlands Ltd,146983,27/06/2013,10186928
INSERTED DETAIL,Economy Development & Culture,Building Control Services Non-Fee Earning Account,BCS01,Postage & Distribution,0370,0.60,TNT Post Midlands Ltd,146983,27/06/2013,10186928
INSERTED DETAIL,Economy Development & Culture,Building Regulation Fee Earning Account,BCS99,Postage & Distribution,0370,10.79,TNT Post Midlands Ltd,146983,27/06/2013,10186928
INSERTED DETAIL,Resources & Corporate Governance,Central Business Support Services,CSS15,Postage & Distribution,0370,100.94,TNT Post Midlands Ltd,146983,27/06/2013,10186928
INSERTED DETAIL,Resources & Corporate Governance ,Council Tax and NNDR Collection,CTX01,Postage & Distribution,0370,229.14,TNT Post Midlands Ltd,146983,27/06/2013,10186928
INSERTED DETAIL,Resources & Corporate Governance ,Electoral Registration,ERG00,Postage & Distribution,0370,127.08,TNT Post Midlands Ltd,146983,27/06/2013,10186928
INSERTED DETAIL,Sustainable Inclusive Communities,Housing Benefit Administration,HBA00,Postage & Distribution,0370,164.62,TNT Post Midlands Ltd,146983,27/06/2013,10186928
INSERTED DETAIL,Housing Revenue Account ,Supervision and Management General,MAN00,Postage & Distribution,0370,29.20,TNT Post Midlands Ltd,146983,27/06/2013,10186928
INSERTED DETAIL,Economy Development & Culture,Visitor Centre,VSC00,Postage & Distribution,0370,4.17,TNT Post Midlands Ltd,146983,27/06/2013,10186928
INSERTED DETAIL,Resources & Corporate Governance ,General Administration,WAD00,Postage & Distribution,0370,36.65,TNT Post Midlands Ltd,146983,27/06/2013,10186928
INSERTED DETAIL,Economy Development & Culture,Art Gallery and Museum,AGM00,Postage & Distribution,0370,33.05,TNT Post Midlands Ltd,146983,27/06/2013,10186929
INSERTED DETAIL,Economy Development & Culture,Building Control Services,BCS00,Postage & Distribution,0370,0.06,TNT Post Midlands Ltd,146983,27/06/2013,10186929
INSERTED DETAIL,Economy Development & Culture,Building Control Services Non-Fee Earning Account,BCS01,Postage & Distribution,0370,0.06,TNT Post Midlands Ltd,146983,27/06/2013,10186929
INSERTED DETAIL,Economy Development & Culture,Building Regulation Fee Earning Account,BCS99,Postage & Distribution,0370,1.04,TNT Post Midlands Ltd,146983,27/06/2013,10186929
INSERTED DETAIL,Resources & Corporate Governance,Central Business Support Services,CSS15,Postage & Distribution,0370,137.17,TNT Post Midlands Ltd,146983,27/06/2013,10186929
INSERTED DETAIL,Resources & Corporate Governance ,Council Tax and NNDR Collection,CTX01,Postage & Distribution,0370,44.99,TNT Post Midlands Ltd,146983,27/06/2013,10186929
INSERTED DETAIL,Resources & Corporate Governance ,Electoral Registration,ERG00,Postage & Distribution,0370,22.56,TNT Post Midlands Ltd,146983,27/06/2013,10186929
INSERTED DETAIL,Sustainable Inclusive Communities,Housing Benefit Administration,HBA00,Postage & Distribution,0370,110.84,TNT Post Midlands Ltd,146983,27/06/2013,10186929
INSERTED DETAIL,Housing Revenue Account ,Supervision and Management General,MAN00,Postage & Distribution,0370,255.74,TNT Post Midlands Ltd,146983,27/06/2013,10186929
INSERTED DETAIL,Economy Development & Culture,Visitor Centre,VSC00,Postage & Distribution,0370,5.06,TNT Post Midlands Ltd,146983,27/06/2013,10186929
INSERTED DETAIL,Resources & Corporate Governance ,General Administration,WAD00,Postage & Distribution,0370,39.06,TNT Post Midlands Ltd,146983,27/06/2013,10186929
INSERTED DETAIL,Capital Program ,Corporate Property Enhancements,CPE00,Capital Contract Payments,5000,75116.46,General Asphalte Company,147047,20/06/2013,10186365
INSERTED DETAIL,Sustainable Inclusive Communities,Woodside Park,TVR00,R&M External Contractors,0100,3080.06,Integral UK Ltd,147080,27/06/2013,10186656
INSERTED DETAIL,Resources & Corporate Governance,Handy man,WHM00,External Contractor & Operator,0742,3549.51,Intelligent Disabled Solutions Ltd,147081,27/06/2013,10186768
INSERTED DETAIL,Resources & Corporate Governance,Handy man,WHM00,External Contractor & Operator,0742,2847.89,Intelligent Disabled Solutions Ltd,147081,27/06/2013,10186769
INSERTED DETAIL,Resources & Corporate Governance,Corporate Property R&M,CPA01,R&M External Contractors,0100,869.00,OCS Safety (National Cradle Maintenance),147094,27/06/2013,10186776
INSERTED DETAIL,Resources & Corporate Governance ,Domestic Waste Collection,WWC00,External Contractor & Operator,0742,450.00,James Baxter Haulage Ltd,147159,13/06/2013,10186522
INSERTED DETAIL,Resources & Corporate Governance ,Domestic Waste Collection,WWC00,External Contractor & Operator,0742,450.00,James Baxter Haulage Ltd,147159,27/06/2013,10186876
INSERTED DETAIL,Resources & Corporate Governance ,Mayoral Services,MAY00,Vehicle Running Costs,0201,460.61,Rybrook Ltd,147178,13/06/2013,10186398
INSERTED DETAIL,Capital Program ,Queen's Diamond Jubilee Leisure Centre Project,LEI03,Capital Contract Payments,5000,4643.75,B3 Architects,147190,20/06/2013,10185970
INSERTED DETAIL,Capital Program ,Queen's Diamond Jubilee Leisure Centre Project,LEI03,Capital Contract Payments,5000,3500.00,B3 Architects,147190,20/06/2013,10185972
INSERTED DETAIL,Capital Program ,Queen's Diamond Jubilee Leisure Centre Project,LEI03,Capital Contract Payments,5000,3500.00,B3 Architects,147190,20/06/2013,10185974
INSERTED DETAIL,Capital Program ,Queen's Diamond Jubilee Leisure Centre Project,LEI03,Capital Contract Payments,5000,-4875.00,B3 Architects,147190,20/06/2013,10185975
INSERTED DETAIL,Resources & Corporate Governance,Corporate Property R&M,CPA01,R&M External Contractors,0100,546.38,Arden Construction Ltd,147430,20/06/2013,10186500
INSERTED DETAIL,Resources & Corporate Governance,Corporate Property R&M,CPA01,R&M External Contractors,0100,1577.60,Arden Construction Ltd,147430,20/06/2013,10186501
INSERTED DETAIL,Resources & Corporate Governance,Corporate Property R&M,CPA01,R&M External Contractors,0100,713.00,Arden Construction Ltd,147430,20/06/2013,10186503
INSERTED DETAIL,Resources & Corporate Governance,Corporate Property R&M,CPA01,R&M External Contractors,0100,783.40,Hygienic Concepts,147630,20/06/2013,10185957
INSERTED DETAIL,Capital Program ,Viaduct Cycleways,CYC02,Capital Contract Payments,5000,127509.00,Currall Lewis & Martin (Construction) Ltd,147769,06/06/2013,10185921
INSERTED DETAIL,Capital Program ,Great Central Walk Bridge,LEI14,Capital Contract Payments,5000,33438.48,Currall Lewis & Martin (Construction) Ltd,147769,06/06/2013,10185922
INSERTED DETAIL,Capital Program ,Great Central Walk Bridge,LEI14,Capital Contract Payments,5000,6523.28,Currall Lewis & Martin (Construction) Ltd,147769,06/06/2013,10185923
INSERTED DETAIL,Resources & Corporate Governance ,General Financial Services,GFS00,External Contractor & Operator,0742,1994.52,Tradition (UK) Ltd,147842,13/06/2013,10186273
INSERTED DETAIL,Resources & Corporate Governance ,"Communications, Consultation and Information Team",BTR20,Publicity & Marketing,0377,2925.00,Cole Creative Communications Ltd,147857,13/06/2013,10186287
INSERTED DETAIL,Resources & Corporate Governance ,"Communications, Consultation and Information Team",BTR20,Publicity & Marketing,0377,525.00,Cole Creative Communications Ltd,147857,27/06/2013,10186782
INSERTED DETAIL,Resources & Corporate Governance ,"Communications, Consultation and Information Team",BTR20,Publicity & Marketing,0377,1780.00,Cole Creative Communications Ltd,147857,27/06/2013,10186783
INSERTED DETAIL,Resources & Corporate Governance ,"Communications, Consultation and Information Team",BTR20,Publicity & Marketing,0377,1008.00,Cole Creative Communications Ltd,147857,27/06/2013,10186785
INSERTED DETAIL,Resources & Corporate Governance ,"Communications, Consultation and Information Team",BTR20,Photographic Expenses,0355,5314.35,Cole Creative Communications Ltd,147857,27/06/2013,10186787
INSERTED DETAIL,Resources & Corporate Governance ,"Communications, Consultation and Information Team",BTR20,Publicity & Marketing,0377,3171.20,Cole Creative Communications Ltd,147857,27/06/2013,10186788
INSERTED DETAIL,Resources & Corporate Governance ,"Communications, Consultation and Information Team",BTR20,Publicity & Marketing,0377,2943.00,Cole Creative Communications Ltd,147857,27/06/2013,10187156
INSERTED DETAIL,Capital Program ,Queen's Diamond Jubilee Leisure Centre Project,LEI03,Capital Contract Payments,5000,1009160.39,Shepherd Construction Ltd,148014,13/06/2013,10186410
INSERTED DETAIL,Capital Program ,Viaduct Cycleways,CYC02,Capital Contract Payments,5000,5080.00,Traffic Survey Partners,148053,20/06/2013,10186916
INSERTED DETAIL,Resources & Corporate Governance ,Human Resources Centralised Services,RES31,Training fees,0011,647.00,KBTraining,148335,20/06/2013,10186560
INSERTED DETAIL,Capital Program ,Pettiver Crescent,PCH00,Capital Contract Payments,5000,807.50,"Gotch, Saunders & Surridge LLP , t/a GSS Architecture",148432,20/06/2013,10186921
INSERTED DETAIL,Resources & Corporate Governance ,Street Cleansing,WSC00,Vehicle Repair and Maintenance,0200,972.11,Clemas & Co Ltd,148440,13/06/2013,10185749
INSERTED DETAIL,Resources & Corporate Governance,Handy man,WHM00,Materials,0303,1138.25,A & A Lamb Ltd,148461,06/06/2013,10185629
INSERTED DETAIL,Sustainable Environment ,Caldecott Park/Town Centre Area,PKS00,External Contractor & Operator,0742,2356.00,J P Landscapes & Construction Ltd,148502,13/06/2013,10185943
INSERTED DETAIL,Sustainable Inclusive Communities,CL Grants,CGS00,Grants To Voluntary Organisations,0720,2500.00,Rugby Foodbank,148531,06/06/2013,10185870
INSERTED DETAIL,Resources & Corporate Governance ,IT Procurement,CMP00,IT Capital Expenditure,5025,1066.16,Intrinsic Technology Ltd,148620,20/06/2013,10186771
INSERTED DETAIL,Resources & Corporate Governance ,Human Resources Centralised Services,RES31,Training fees,0011,1800.00,Solihull College,148678,13/06/2013,10186083
INSERTED DETAIL,Resources & Corporate Governance ,General Administration,WAD00,Training fees,0011,879.00,Radiodetection Limited,148837,13/06/2013,10186299
INSERTED DETAIL,Resources & Corporate Governance,Corporate Property R&M,CPA01,R&M External Contractors,0100,5948.00,ASG Stage Products Ltd,148857,20/06/2013,10186922
INSERTED DETAIL,Housing Revenue Account ,Gas Heating Systems,UMR01,R&M External Contractors,0100,29997.00,Robert Heath Heating Ltd,148858,13/06/2013,10185883
INSERTED DETAIL,Housing Revenue Account ,Gas Heating Systems,UMR01,R&M External Contractors,0100,39289.00,Robert Heath Heating Ltd,148858,20/06/2013,10186635
INSERTED DETAIL,Housing Revenue Account ,Unplanned Maintenance and Repair,UMR00,R&M External Contractors,0100,1729.57,Robert Heath Heating Ltd,148858,27/06/2013,10187296
INSERTED DETAIL,Housing Revenue Account ,Gas Heating Systems,UMR01,R&M External Contractors,0100,1052.50,Robert Heath Heating Ltd,148858,27/06/2013,10187296
INSERTED DETAIL,Capital Program ,Parish and Rural Capital Spending,CGR03,Capital Grants,5014,18379.00,Shilton & Barnacle Parish Council,148879,27/06/2013,10186864
INSERTED DETAIL,Resources & Corporate Governance,Corporate Property R&M,CPA01,R&M External Contractors,0100,840.00,Sustain Ltd,148901,27/06/2013,10184636
INSERTED DETAIL,Resources & Corporate Governance ,IT Procurement,CMP00,IT Capital Expenditure,5025,3888.00,Computer Power Protection (Sales) Ltd,148903,06/06/2013,10185944
INSERTED DETAIL,Capital Program ,Queen's Diamond Jubilee Leisure Centre Project,LEI03,Capital Contract Payments,5000,1187.33,Portakabin Ltd,148919,20/06/2013,10185828
INSERTED DETAIL,Resources & Corporate Governance,Central Business Support Services,CSS15,Photocopying,0354,1386.69,Xerox Finance Ltd,148940,06/06/2013,10185708
INSERTED DETAIL,Capital Program ,Kitchen Modifications,HIK10,Capital Contract Payments,5000,900.00,Capita Symonds Ltd,148946,06/06/2013,10185711
INSERTED DETAIL,Economy Development & Culture,The Benn Hall,BHL00,Purchases for Resale,0305,2863.84,Matthew Clark Wholesale Ltd,148975,06/06/2013,10185954
INSERTED DETAIL,Economy Development & Culture,The Benn Hall,BHL00,Purchases for Resale,0305,536.42,Matthew Clark Wholesale Ltd,148975,20/06/2013,10186773
INSERTED DETAIL,Sustainable Environment ,Crime and Disorder Activities,CAD00,Other Miscellaneous Expenses,0444,10636.44,QRO Solutions Ltd,148976,20/06/2013,10186918
INSERTED DETAIL,Resources & Corporate Governance ,IT Procurement,CMP00,IT Capital Expenditure,5025,11786.00,One Source IT Ltd,148989,06/06/2013,10185289
INSERTED DETAIL,Sustainable Inclusive Communities,Housing Benefit Administration,HBA00,Training fees,0011,689.98,Kaplan Financial Ltd,148997,06/06/2013,10185826
INSERTED DETAIL,Economy Development & Culture,Planning Control,PLN01,External Legal Costs,0741,450.00,Miss Sarah Clover,149030,13/06/2013,10185982
detail,Sustainable Environment ,Cemeteries General,CEM00,External Contractor & Operator,0742,500.00,St Margarets Parochial Church Council of Wolston,149060,20/06/2013,10186807
,Economy Development & Culture,Car Parks General,HKC01,Employment Checks,0444,880.00,CRB,28442,17/06/2013,
,,Balance Sheet,BS,Cov & Warks Pooling Fund,9476,1380109.00,Cov & Warks Pooling Fund,28455,18/06/2013,
,,Balance Sheet,BS,Business Rate Retention Scheme payment,9476,2118342.00,CLG,28460,19/06/2013,
,,Balance Sheet,BS,Business Rate Retention Scheme payment,9476,424665.00,WCC County Fund,28461,19/06/2013,
,,Balance Sheet,BS,Overseas  C Tax Refund,9256,525.47,Herr Stephen Smith,28563,24/06/2013,
Sustainable Enironment,Sustainable Enironment,Caldecott Park Caf� & Benn Hall,WGM02,Purchases for Resale,0303,666.49,Booker Ltd,28564,25/06/2013,
Resources & Corporate Governance ,Resources & Corporate Governance ,General Financial Services,GFS00,Payment Card Costs,0444,1240.54,Capita,28518,26/06/2013,
